bitfinex-derivatives/quotes_BTCF0:USTF0_20241210
["timestamp","ask_amount","ask_price","bid_price","bid_amount"]
[1733864514283,0.051731,96599.0,96598.0,0.00713]
[1733864514879,0.051731,96599.0,96598.0,0.01541]
[1733864515270,0.051742,96579.0,96578.0,0.3608]
[1733864515472,0.051738,96587.0,96556.0,0.3608]
[1733864515473,0.051744,96576.0,96556.0,0.3608]
[1733864515679,0.3608,96581.0,96556.0,0.3608]
[1733864515680,0.0496,96578.0,96556.0,0.3608]
[1733864515889,0.051748,96569.0,96568.0,0.051746]
[1733864516179,0.051749,96568.0,96567.0,0.051748]
[1733864516574,0.15469195,96573.0,96556.0,0.3608]
[1733864516879,0.15469195,96573.0,96572.0,0.051746]
[1733864516880,0.20643795,96573.0,96572.0,0.051746]
[1733864517073,0.051746,96573.0,96572.0,0.051746]
[1733864517871,0.054746,96573.0,96572.0,0.051746]
[1733864518377,0.051749,96568.0,96567.0,0.051748]
[1733864519879,0.051749,96568.0,96564.0,0.00828]
[1733864519880,0.001,96568.0,96564.0,0.00828]
[1733864520085,0.05175,96565.0,96564.0,0.00828]
[1733864520286,0.05175,96565.0,96564.0,0.06003]
[1733864520586,0.002,96568.0,96567.0,0.051749]
[1733864520793,0.002,96568.0,96567.0,0.412549]
[1733864520973,0.001,96568.0,96567.0,0.412549]
[1733864521176,0.051741,96581.0,96567.0,0.412549]
[1733864521382,0.051741,96581.0,96580.0,0.051742]
[1733864521573,0.0522,96594.0,96567.0,0.3608]
[1733864521574,0.3608,96592.0,96567.0,0.3608]
[1733864521883,0.044468,96568.0,96567.0,0.3608]
[1733864522278,0.045468,96568.0,96567.0,0.3608]
[1733864523681,0.045468,96568.0,96567.0,0.412549]
[1733864524082,0.001,96568.0,96567.0,0.412549]
[1733864524881,0.002,96568.0,96567.0,0.412549]
[1733864526980,0.053748,96568.0,96567.0,0.412549]
[1733864528187,0.002,96568.0,96567.0,0.412549]
[1733864529090,0.002,96568.0,96567.0,0.42140031]
[1733864531384,0.002,96568.0,96567.0,0.412549]
[1733864531593,0.053748,96568.0,96567.0,0.412549]
[1733864531893,0.053748,96568.0,96567.0,0.3608]
[1733864532087,0.06237601,96568.0,96567.0,0.3608]
[1733864532287,0.053748,96568.0,96567.0,0.3608]
[1733864532488,0.053748,96568.0,96567.0,0.412549]
[1733864532689,0.17763802,96568.0,96567.0,0.3608]
[1733864532990,0.17763802,96568.0,96567.0,0.412549]
[1733864532991,0.002,96568.0,96567.0,0.412549]
[1733864533380,0.002,96568.0,96567.0,0.47368785]
[1733864535082,0.002,96568.0,96567.0,0.42193885]
[1733864535385,0.053748,96568.0,96567.0,0.3608]
[1733864535890,0.053748,96568.0,96567.0,0.412549]
[1733864535891,0.002,96568.0,96567.0,0.412549]
[1733864536186,0.002,96568.0,96567.0,0.4578457]
[1733864536391,0.002,96568.0,96567.0,0.51902238]
[1733864536688,0.002,96568.0,96567.0,0.47372568]
[1733864536879,0.002,96568.0,96567.0,0.412549]
[1733864537293,0.002,96568.0,96567.0,0.59658487]
[1733864537485,0.002,96568.0,96567.0,0.47371398]
[1733864537687,0.12389002,96582.0,96581.0,0.051741]
[1733864537895,0.12389002,96588.0,96577.0,0.412543]
[1733864538085,0.051735,96592.0,96581.0,0.18403736]
[1733864538391,0.051735,96592.0,96583.0,0.18403736]
[1733864538597,0.051735,96592.0,96584.0,0.06114405]
[1733864538789,0.051735,96592.0,96585.0,0.06114405]
[1733864538990,0.051735,96592.0,96586.0,0.06114405]
[1733864539194,0.051735,96592.0,96591.0,0.051736]
[1733864540001,0.12389002,96595.0,96582.0,0.00849288]
[1733864540292,0.12389002,96595.0,96581.0,0.18403736]
[1733864540293,0.051733,96596.0,96594.0,0.051734]
[1733864540895,0.051733,96596.0,96595.0,0.051734]
[1733864541696,0.052733,96596.0,96595.0,0.051734]
[1733864542986,0.051734,96595.0,96594.0,0.00928]
[1733864543197,0.051734,96595.0,96594.0,0.00828]
[1733864543696,0.2065416,96595.0,96594.0,0.00828]
[1733864543891,0.051734,96595.0,96594.0,0.00828]
[1733864544092,0.056734,96595.0,96594.0,0.00828]
[1733864544287,0.056734,96595.0,96594.0,0.00928]
[1733864544288,0.058734,96595.0,96594.0,0.00928]
[1733864544796,0.058734,96595.0,96594.0,0.061014]
[1733864544993,0.007,96595.0,96594.0,0.061014]
[1733864545498,0.13086131,96595.0,96594.0,0.061014]
[1733864545694,0.13086131,96595.0,96594.0,0.069294]
[1733864545996,0.007,96595.0,96594.0,0.069294]
[1733864547098,0.058734,96595.0,96594.0,0.01756]
[1733864548696,0.058734,96595.0,96594.0,0.069294]
[1733864550998,0.007,96595.0,96594.0,0.069294]
[1733864553294,0.007,96595.0,96594.0,0.07815728]
[1733864553504,0.007,96595.0,96594.0,0.43895728]
[1733864554303,0.007,96595.0,96594.0,0.4991217]
[1733864554304,0.005,96595.0,96594.0,0.4991217]
[1733864554501,0.007,96595.0,96594.0,0.5001217]
[1733864554901,0.007,96595.0,96594.0,0.50011227]
[1733864555097,0.007,96595.0,96594.0,0.43895728]
[1733864556104,0.002,96595.0,96594.0,0.43895728]
[1733864556304,0.006,96595.0,96594.0,0.43895728]
[1733864556812,0.057734,96595.0,96594.0,0.01756]
[1733864561807,0.057734,96595.0,96594.0,0.069293]
[1733864565515,0.18156708,96595.0,96594.0,0.069293]
[1733864565816,0.057734,96595.0,96594.0,0.069293]
[1733864566309,0.006,96595.0,96594.0,0.069293]
[1733864566511,0.1,96600.0,96594.0,0.43044693]
[1733864566809,0.12383308,96619.0,96615.0,0.051718]
[1733864567010,0.12383308,96622.0,96621.0,0.051715]
[1733864567200,0.12383308,96629.0,96628.0,0.051711]
[1733864567403,0.05171,96630.0,96621.0,0.18400694]
[1733864567404,0.12383308,96630.0,96621.0,0.18400694]
[1733864567609,0.051713,96625.0,96622.0,0.051714]
[1733864567810,0.10286667,96631.0,96621.0,0.18400694]
[1733864568006,0.051714,96627.0,96622.0,0.051716]
[1733864568205,0.051716,96624.0,96620.0,0.18400694]
[1733864568406,0.10286667,96631.0,96623.0,0.00827]
[1733864569507,0.001,96624.0,96623.0,0.00827]
[1733864569709,0.001,96624.0,96623.0,0.00927]
[1733864570107,0.051716,96625.0,96623.0,0.00927]
[1733864570412,0.10286667,96631.0,96623.0,0.00927]
[1733864570617,0.051713,96628.0,96626.0,0.051714]
[1733864570917,0.051715,96624.0,96623.0,0.00927]
[1733864571618,0.051715,96624.0,96623.0,0.060986]
[1733864571803,0.052715,96624.0,96623.0,0.060986]
[1733864572312,0.001,96624.0,96623.0,0.060986]
[1733864572528,0.21264395,96644.0,96641.0,0.051707]
[1733864572529,0.12538568,96644.0,96641.0,0.051707]
[1733864572812,0.12538568,96644.0,96624.0,0.051715]
[1733864572813,0.0015526,96644.0,96637.0,0.412508]
[1733864573017,0.051708,96639.0,96637.0,0.412508]
[1733864575327,0.051708,96639.0,96638.0,0.00827]
[1733864576122,0.051708,96639.0,96638.0,0.01654]
[1733864576318,0.0015526,96644.0,96638.0,0.01654]
[1733864576319,0.0015526,96644.0,96639.0,0.051707]
[1733864576617,0.412506,96641.0,96639.0,0.051707]
[1733864576813,0.051707,96639.0,96638.0,0.01754]
[1733864577408,0.051707,96639.0,96636.0,0.00199]
[1733864577615,0.051708,96637.0,96636.0,0.00199]
[1733864577823,0.051707,96639.0,96623.0,0.3608]
[1733864577824,0.051715,96625.0,96624.0,0.051715]
[1733864579218,0.051715,96625.0,96623.0,0.3608]
[1733864579423,0.051716,96623.0,96622.0,0.01025]
[1733864579620,0.051726,96605.0,96604.0,0.051726]
[1733864579814,0.412526,96605.0,96603.0,0.01054088]
[1733864580028,0.412526,96605.0,96603.0,0.0015526]
[1733864580421,0.412526,96605.0,96603.0,0.0532786]
[1733864580614,0.412526,96605.0,96603.0,0.0015526]
[1733864581424,0.051726,96604.0,96603.0,0.0015526]
[1733864581814,0.051726,96604.0,96578.0,0.054]
[1733864581815,0.3,96604.0,96572.0,0.18400694]
[1733864582124,0.3,96604.0,96571.0,0.3608]
[1733864582125,0.051743,96572.0,96571.0,0.3608]
[1733864582513,0.10286667,96582.0,96567.0,0.0006]
[1733864582514,0.3608,96577.0,96567.0,0.0006]
[1733864582716,0.3608,96577.0,96567.0,0.00946599]
[1733864582717,0.051745,96568.0,96567.0,0.00946599]
[1733864582916,0.051745,96568.0,96567.0,0.052346]
[1733864583117,0.051745,96568.0,96567.0,0.051746]
[1733864583523,0.051745,96568.0,96561.0,0.0537]
[1733864583524,0.051742,96574.0,96571.0,0.051743]
[1733864583713,0.051743,96573.0,96571.0,0.051743]
[1733864584221,0.10286667,96582.0,96569.0,0.3608]
[1733864584522,0.051741,96576.0,96575.0,0.051741]
[1733864584917,0.10286667,96582.0,96564.0,0.00915822]
[1733864585113,0.001,96573.0,96561.0,0.0537]
[1733864585422,0.001,96573.0,96569.0,0.3608]
[1733864585622,0.10286667,96574.0,96569.0,0.3608]
[1733864585820,0.10286667,96574.0,96569.0,0.412545]
[1733864585821,0.051744,96571.0,96569.0,0.412545]
[1733864586627,0.051744,96571.0,96563.0,0.00208817]
[1733864586628,0.10286667,96574.0,96563.0,0.00208817]
[1733864586822,0.051745,96569.0,96565.0,0.051747]
[1733864587019,0.051745,96569.0,96568.0,0.3608]
[1733864590124,0.10286667,96578.0,96568.0,0.3608]
[1733864590125,0.051741,96576.0,96568.0,0.3608]
[1733864590324,0.051741,96576.0,96572.0,0.051743]
[1733864590729,0.10286667,96578.0,96568.0,0.3608]
[1733864590923,0.051744,96570.0,96568.0,0.3608]
[1733864592322,0.051744,96570.0,96568.0,0.36782]
[1733864593925,0.0579,96569.0,96568.0,0.36782]
[1733864594426,0.1155,96569.0,96568.0,0.36782]
[1733864597024,0.051744,96570.0,96568.0,0.36782]
[1733864597025,0.36144,96575.0,96568.0,0.36782]
[1733864597331,0.412541,96575.0,96574.0,0.051742]
[1733864598421,0.413541,96575.0,96574.0,0.051742]
[1733864599528,0.052741,96575.0,96574.0,0.051742]
[1733864599931,0.052741,96575.0,96568.0,0.36834]
[1733864599932,0.051744,96570.0,96569.0,0.051744]
[1733864600928,0.051744,96569.0,96568.0,0.36834]
[1733864601122,0.051744,96569.0,96568.0,0.36782]
[1733864601321,0.219544,96569.0,96568.0,0.36782]
[1733864602024,0.220544,96569.0,96568.0,0.36782]
[1733864602828,0.219544,96569.0,96568.0,0.36882]
[1733864603129,0.22974501,96569.0,96568.0,0.36882]
[1733864603335,0.23174501,96569.0,96568.0,0.36882]
[1733864604026,0.23174501,96569.0,96568.0,0.36782]
[1733864604230,0.23274501,96569.0,96568.0,0.36882]
[1733864604836,0.23174501,96569.0,96568.0,0.36882]
[1733864605131,0.23174501,96569.0,96563.0,8.817e-05]
[1733864605132,0.59354501,96569.0,96563.0,8.817e-05]
[1733864605332,0.051747,96564.0,96563.0,8.817e-05]
[1733864605534,0.412547,96564.0,96563.0,1.7e-07]
[1733864605738,0.412547,96564.0,96527.0,0.3608]
[1733864605739,0.051766,96528.0,96527.0,0.412567]
[1733864605933,0.051755,96550.0,96531.0,0.051764]
[1733864605934,0.051765,96532.0,96531.0,0.051764]
[1733864606633,0.05185317,96532.0,96531.0,0.051764]
[1733864607439,8.817e-05,96532.0,96531.0,0.412564]
[1733864608037,8.817e-05,96532.0,96531.0,0.416564]
[1733864611231,0.05185217,96532.0,96531.0,0.3648]
[1733864611744,8.817e-05,96532.0,96531.0,0.416564]
[1733864612039,0.0549,96547.0,96531.0,0.416564]
[1733864612040,0.15462167,96550.0,96532.0,0.051764]
[1733864612240,0.051755,96549.0,96546.0,0.051756]
[1733864612433,0.10286667,96550.0,96546.0,0.051756]
[1733864612632,0.051756,96547.0,96546.0,0.051756]
[1733864613644,0.051757,96546.0,96543.0,0.051758]
[1733864613829,0.051757,96546.0,96532.0,0.001]
[1733864614037,0.10286667,96542.0,96532.0,0.001]
[1733864614529,0.10286667,96542.0,96533.0,0.06110439]
[1733864614735,0.10286667,96542.0,96534.0,0.06110439]
[1733864614939,0.10286667,96542.0,96531.0,0.3608]
[1733864614940,0.10286667,96542.0,96541.0,0.051759]
[1733864616137,0.10486667,96542.0,96541.0,0.051759]
[1733864616940,0.10486667,96542.0,96541.0,0.412559]
[1733864617553,0.10486667,96542.0,96541.0,0.42179636]
[1733864618551,0.002,96542.0,96541.0,0.42179636]
[1733864622341,0.002,96542.0,96541.0,0.48294186]
[1733864622945,0.002,96542.0,96541.0,0.42179636]
[1733864626242,0.002,96542.0,96541.0,0.48299287]
[1733864627153,0.12341724,96573.0,96561.0,0.051748]
[1733864627456,0.22628391,96580.0,96577.0,0.05174]
[1733864627658,0.12341724,96580.0,96577.0,0.05174]
[1733864627846,0.051737,96582.0,96578.0,0.051739]
[1733864628246,0.051737,96582.0,96580.0,0.051738]
[1733864628455,0.12341724,96584.0,96582.0,0.051737]
[1733864628649,0.10286667,96587.0,96586.0,0.051735]
[1733864628855,0.00155344,96593.0,96592.0,0.051732]
[1733864629453,0.00155344,96593.0,96585.0,0.3699438]
[1733864629645,0.051734,96588.0,96582.0,0.001]
[1733864629850,0.051735,96587.0,96582.0,0.001]
[1733864630759,0.051735,96587.0,96583.0,0.06098061]
[1733864630960,0.051735,96587.0,96584.0,0.06098061]
[1733864631259,0.05174,96578.0,96576.0,0.3608]
[1733864631558,0.00155344,96593.0,96576.0,0.3608]
[1733864631559,0.12382701,96605.0,96579.0,9.027e-05]
[1733864631762,0.22669368,96610.0,96600.0,0.3608]
[1733864632056,0.051727,96602.0,96600.0,0.3608]
[1733864633553,0.053727,96602.0,96600.0,0.3608]
[1733864633747,0.053727,96602.0,96581.0,0.3608]
[1733864633965,0.053727,96602.0,96566.0,0.303483]
[1733864633966,0.10286667,96591.0,96573.0,0.3608]
[1733864634259,0.10286667,96591.0,96580.0,0.06097144]
[1733864634557,0.051738,96581.0,96578.0,0.051739]
[1733864634859,0.051738,96581.0,96573.0,0.3608]
[1733864635061,0.051738,96581.0,96579.0,0.05182927]
[1733864635756,0.051738,96581.0,96579.0,0.05382927]
[1733864635951,0.051738,96581.0,96579.0,0.05582927]
[1733864636956,0.051738,96581.0,96579.0,0.05482927]
[1733864637966,0.051738,96581.0,96579.0,0.05282927]
[1733864639556,0.10286667,96589.0,96579.0,0.00109027]
[1733864639856,0.10286667,96600.0,96581.0,0.3608]
[1733864640066,0.412529,96598.0,96597.0,0.05173]
[1733864640456,0.10441976,96607.0,96606.0,0.051725]
[1733864640667,0.00155309,96607.0,96606.0,0.412525]
[1733864640863,0.00155309,96607.0,96590.0,0.1111]
[1733864641061,0.051728,96602.0,96590.0,0.1111]
[1733864641260,0.051731,96596.0,96594.0,0.051732]
[1733864641461,0.10286667,96600.0,96590.0,0.051734]
[1733864641462,0.051734,96591.0,96590.0,0.051734]
[1733864641763,0.10286667,96600.0,96594.0,0.051732]
[1733864641764,0.051731,96595.0,96594.0,0.051732]
[1733864643562,0.10286667,96600.0,96588.0,0.3608]
[1733864643860,0.051738,96580.0,96579.0,9.027e-05]
[1733864645758,0.06113037,96580.0,96579.0,9.027e-05]
[1733864645954,0.051749,96561.0,96558.0,0.00155349]
[1733864646156,0.05175,96559.0,96558.0,0.00155349]
[1733864647958,0.05175,96559.0,96558.0,0.05175]
[1733864648566,0.051755,96554.0,96553.0,0.051753]
[1733864649659,0.051751,96557.0,96556.0,0.051751]
[1733864649860,0.051748,96563.0,96562.0,0.051748]
[1733864650462,0.10286667,96570.0,96562.0,0.051748]
[1733864650668,0.36148,96574.0,96557.0,0.3608]
[1733864650866,0.051742,96574.0,96573.0,0.051742]
[1733864651066,9.027e-05,96579.0,96578.0,0.05174]
[1733864651067,0.05182927,96579.0,96578.0,0.05174]
[1733864652369,0.05182927,96579.0,96578.0,0.41254]
[1733864652567,0.05182927,96579.0,96578.0,0.05174]
[1733864652960,0.05182927,96579.0,96578.0,0.41254]
[1733864655970,9.027e-05,96579.0,96578.0,0.41254]
[1733864656162,0.12538057,96600.0,96578.0,0.42168005]
[1733864656367,0.00155356,96600.0,96599.0,0.051728]
[1733864656771,0.12382701,96608.0,96599.0,0.3608]
[1733864656964,0.21669727,96633.0,96599.0,0.3608]
[1733864656965,0.12382701,96623.0,96607.0,0.3608]
[1733864657168,0.02061522,96624.0,96607.0,0.3608]
[1733864657169,0.10286667,96620.0,96607.0,0.3608]
[1733864657368,0.10286667,96620.0,96613.0,0.051719]
[1733864657563,0.10286667,96620.0,96607.0,0.3608]
[1733864657866,0.36299288,96629.0,96626.0,0.051713]
[1733864658176,0.36235288,96629.0,96626.0,0.051713]
[1733864658367,0.00155288,96629.0,96626.0,0.051713]
[1733864660268,0.00155288,96629.0,96626.0,0.052713]
[1733864660775,0.00155288,96629.0,96628.0,0.3608]
[1733864660985,0.00155288,96629.0,96628.0,0.412512]
[1733864661276,0.10286667,96640.0,96628.0,0.3608]
[1733864661679,0.05171,96633.0,96628.0,0.3608]
[1733864661877,0.10286667,96640.0,96628.0,0.3618]
[1733864662076,0.10286667,96640.0,96628.0,0.413512]
[1733864662077,0.051708,96636.0,96628.0,0.413512]
[1733864663281,0.051708,96636.0,96628.0,0.412512]
[1733864663477,0.051708,96636.0,96628.0,0.413512]
[1733864663781,0.3608,96638.0,96628.0,0.413512]
[1733864663972,0.3608,96638.0,96628.0,0.001]
[1733864663973,0.3608,96629.0,96628.0,0.001]
[1733864664178,0.3608,96629.0,96608.0,0.00155257]
[1733864664179,0.051723,96609.0,96608.0,0.00155257]
[1733864664375,0.051723,96609.0,96598.0,0.07246]
[1733864664376,0.051728,96599.0,96598.0,0.07246]
[1733864664683,0.051728,96599.0,96587.0,0.0001259]
[1733864664684,0.051734,96588.0,96587.0,0.0001259]
[1733864664985,0.412534,96588.0,96587.0,0.0001259]
[1733864665187,0.051734,96588.0,96587.0,0.0001259]
[1733864666372,0.412534,96588.0,96587.0,0.0001259]
[1733864666573,0.412534,96588.0,96587.0,0.0031259]
[1733864666975,0.412534,96588.0,96587.0,0.00444611]
[1733864667376,0.412534,96588.0,96587.0,0.00844611]
[1733864669381,0.412534,96588.0,96587.0,0.00960162]
[1733864669581,0.412534,96588.0,96587.0,6.2e-07]
[1733864669780,0.412534,96588.0,96564.0,0.00155333]
[1733864669781,0.051739,96578.0,96564.0,0.00155333]
[1733864670098,0.051746,96565.0,96564.0,0.00155333]
[1733864670887,0.05182109,96565.0,96564.0,0.00155333]
[1733864671973,0.05282109,96565.0,96564.0,0.00155333]
[1733864672681,0.06591192,96565.0,96564.0,0.00155333]
[1733864673474,0.05682109,96565.0,96564.0,0.00155333]
[1733864673688,0.00507509,96565.0,96564.0,0.00155333]
[1733864674072,0.15434841,96574.0,96564.0,0.01061822]
[1733864674284,0.3608,96588.0,96564.0,0.01061822]
[1733864674285,0.36144,96588.0,96570.0,0.3608]
[1733864674480,0.051737,96583.0,96572.0,0.051742]
[1733864674678,0.051737,96583.0,96579.0,0.051739]
[1733864675179,5.081e-05,96582.0,96580.0,0.051738]
[1733864675385,0.05178781,96582.0,96580.0,0.051738]
[1733864676483,0.05478781,96582.0,96580.0,0.051738]
[1733864676991,0.05378781,96582.0,96580.0,0.051738]
[1733864677188,0.05278781,96582.0,96580.0,0.051738]
[1733864677484,0.05278781,96582.0,96580.0,0.412538]
[1733864677485,0.05478781,96582.0,96580.0,0.412538]
[1733864678581,0.00305081,96582.0,96580.0,0.412538]
[1733864679183,0.15434841,96600.0,96580.0,0.3608]
[1733864679383,0.051737,96582.0,96580.0,0.3608]
[1733864679691,0.051742,96573.0,96572.0,0.051]
[1733864679994,0.15734841,96582.0,96564.0,0.01086205]
[1733864680580,0.051746,96565.0,96564.0,0.00155333]
[1733864681986,0.20609041,96574.0,96572.0,0.051742]
[1733864682586,0.15434841,96574.0,96569.0,0.3608]
[1733864682785,0.15434841,96574.0,96564.0,0.00155333]
[1733864682786,0.051746,96567.0,96565.0,0.051746]
[1733864682989,0.15434841,96574.0,96564.0,0.00155333]
[1733864683189,0.00952966,96590.0,96564.0,0.00155333]
[1733864683190,0.16387807,96590.0,96564.0,0.00155333]
[1733864683388,0.16387807,96590.0,96567.0,0.3608]
[1733864683689,0.051742,96573.0,96572.0,0.051742]
[1733864684083,0.051742,96573.0,96567.0,0.3608]
[1733864684283,0.051742,96573.0,96569.0,0.051744]
[1733864684683,0.051742,96573.0,96567.0,0.3608]
[1733864684684,0.051738,96581.0,96574.0,0.051741]
[1733864684880,0.15434841,96590.0,96575.0,0.3608]
[1733864685081,0.15434841,96590.0,96576.0,0.0538]
[1733864685293,0.05174,96577.0,96576.0,0.0538]
[1733864687887,0.05174,96577.0,96576.0,0.06343298]
[1733864688082,0.05174,96577.0,96576.0,0.0538]
[1733864688581,0.05174,96577.0,96576.0,0.10554]
[1733864688985,0.05174,96577.0,96576.0,0.15574]
[1733864689385,0.05174,96577.0,96576.0,0.104]
[1733864689690,0.05174,96577.0,96576.0,0.17648]
[1733864691397,0.05174,96577.0,96576.0,0.22822]
[1733864691890,0.05174,96577.0,96576.0,0.58902]
[1733864692696,0.05174,96577.0,96576.0,0.22822]
[1733864693297,0.05174,96577.0,96576.0,0.58902]
[1733864694994,0.22619392,96586.0,96576.0,0.58902]
[1733864694995,0.10291054,96586.0,96585.0,0.051735]
[1733864695194,0.15633694,96599.0,96585.0,0.051735]
[1733864695195,0.051734,96588.0,96587.0,0.051734]
[1733864695787,0.10291054,96595.0,96585.0,0.3608]
[1733864695987,0.051733,96593.0,96587.0,0.02302]
[1733864696196,0.12384999,96597.0,96587.0,0.02302]
[1733864696499,0.00155318,96599.0,96598.0,0.05173]
[1733864696889,0.10363054,96608.0,96593.0,0.3608]
[1733864696890,0.12384999,96606.0,96593.0,0.3608]
[1733864697092,0.12384999,96608.0,96607.0,0.051725]
[1733864697291,0.12384999,96615.0,96606.0,0.051725]
[1733864697704,0.10291054,96620.0,96607.0,0.1014]
[1733864697705,0.051724,96608.0,96607.0,0.1014]
[1733864697900,0.051725,96607.0,96595.0,0.18373725]
[1733864698096,0.3608,96608.0,96593.0,0.413092]
[1733864698097,0.051731,96594.0,96593.0,0.413092]
[1733864698298,0.051731,96594.0,96593.0,0.412532]
[1733864698505,0.10291054,96605.0,96593.0,0.3608]
[1733864698803,0.051731,96594.0,96593.0,0.412531]
[1733864698994,0.051731,96594.0,96593.0,0.47368366]
[1733864699399,0.051731,96594.0,96593.0,0.47468366]
[1733864700000,0.11247068,96605.0,96593.0,0.47468366]
[1733864700001,0.3608,96596.0,96593.0,0.001]
[1733864700209,0.051731,96594.0,96593.0,0.001]
[1733864700602,0.3608,96596.0,96593.0,0.001]
[1733864700804,0.3608,96596.0,96595.0,0.051731]
[1733864702715,0.3608,96596.0,96595.0,0.052731]
[1733864702906,0.41253,96596.0,96595.0,0.052731]
[1733864703308,0.41253,96596.0,96595.0,0.001]
[1733864703805,0.56731376,96596.0,96595.0,0.001]
[1733864704007,0.051734,96588.0,96587.0,0.02302]
[1733864704205,0.412534,96588.0,96587.0,0.02302]
[1733864704417,0.46285306,96588.0,96587.0,0.02302]
[1733864704713,0.51355306,96588.0,96587.0,0.02302]
[1733864704902,0.51355306,96588.0,96576.0,0.07248]
[1733864704903,0.05174,96577.0,96576.0,0.07248]
[1733864706406,0.41254,96577.0,96576.0,0.07248]
[1733864707007,0.42208785,96577.0,96576.0,0.07248]
[1733864707209,0.62627239,96577.0,96576.0,0.07248]
[1733864708024,0.051751,96557.0,96556.0,0.36235342]
[1733864708210,0.051751,96557.0,96556.0,0.00155342]
[1733864709226,0.12382094,96558.0,96547.0,0.0507]
[1733864709514,0.051755,96551.0,96550.0,0.051754]
[1733864709719,0.10291054,96560.0,96556.0,0.001]
[1733864709909,0.05175,96560.0,96559.0,0.05175]
[1733864710617,0.051751,96557.0,96556.0,0.001]
[1733864711005,0.12382094,96560.0,96547.0,0.0507]
[1733864711210,0.12382094,96560.0,96558.0,0.05175]
[1733864711211,0.10291054,96560.0,96558.0,0.05175]
[1733864711507,0.051751,96557.0,96552.0,0.051754]
[1733864711919,0.051751,96557.0,96550.0,0.002]
[1733864712111,0.051752,96556.0,96553.0,0.051753]
[1733864712311,0.051752,96555.0,96553.0,0.051753]
[1733864712520,0.3608,96559.0,96550.0,0.002]
[1733864712909,0.051754,96552.0,96550.0,0.002]
[1733864713116,0.051751,96557.0,96556.0,0.001]
[1733864713913,0.051751,96557.0,96550.0,0.051755]
[1733864713914,0.051754,96551.0,96550.0,0.053755]
[1733864714113,0.051754,96551.0,96550.0,0.056755]
[1733864714518,0.051754,96551.0,96550.0,0.053755]
[1733864714721,0.051754,96551.0,96550.0,0.051755]
[1733864715225,0.051754,96551.0,96550.0,0.054755]
[1733864716317,0.051754,96551.0,96550.0,0.056755]
[1733864718229,0.051754,96551.0,96550.0,0.005]
[1733864719626,0.051754,96551.0,96550.0,0.056755]
[1733864720719,0.10291054,96560.0,96559.0,0.05175]
[1733864720924,0.3608,96567.0,96560.0,0.05175]
[1733864720925,0.051749,96561.0,96560.0,0.05175]
[1733864721126,0.051752,96556.0,96555.0,0.051752]
[1733864721619,0.36144,96567.0,96550.0,0.005]
[1733864721814,0.10391054,96560.0,96559.0,0.05175]
[1733864722018,0.001,96560.0,96559.0,0.05175]
[1733864722425,0.05275,96560.0,96559.0,0.05175]
[1733864722726,0.05275,96560.0,96559.0,0.04812]
[1733864723928,0.05175,96560.0,96559.0,0.04812]
[1733864724523,0.05275,96560.0,96559.0,0.04812]
[1733864724722,0.001,96560.0,96559.0,0.04812]
[1733864725233,0.001,96560.0,96558.0,0.0492]
[1733864725234,0.10291054,96569.0,96558.0,0.0492]
[1733864725526,0.051746,96566.0,96565.0,0.051745]
[1733864725726,0.10291054,96569.0,96568.0,0.051745]
[1733864725927,0.051741,96577.0,96576.0,0.051741]
[1733864726321,0.47342059,96586.0,96575.0,0.3608]
[1733864726624,0.05036236,96576.0,96575.0,0.3608]
[1733864727731,0.46371054,96586.0,96575.0,0.3608]
[1733864727929,0.051739,96581.0,96580.0,0.051738]
[1733864728225,0.051739,96581.0,96575.0,0.3608]
[1733864728226,0.46439054,96586.0,96585.0,0.051736]
[1733864728425,0.13328302,96595.0,96577.0,0.05174]
[1733864728730,0.36303351,96597.0,96594.0,0.3608]
[1733864728731,0.00155351,96597.0,96594.0,0.3608]
[1733864729028,0.00155351,96597.0,96596.0,0.05173]
[1733864729727,0.12382094,96606.0,96595.0,0.1489]
[1733864729728,0.051728,96601.0,96599.0,0.051729]
[1733864731124,0.051728,96601.0,96599.0,0.05410748]
[1733864731831,0.051725,96606.0,96599.0,0.00237848]
[1733864732028,0.10291054,96609.0,96603.0,0.3608]
[1733864732029,0.051726,96604.0,96603.0,0.3608]
[1733864732629,0.10291054,96609.0,96603.0,0.3608]
[1733864732931,0.10291054,96609.0,96608.0,0.051724]
[1733864733130,0.17554094,96616.0,96608.0,0.051724]
[1733864733131,0.05172,96616.0,96615.0,0.05172]
[1733864733519,0.10291054,96620.0,96608.0,0.00137848]
[1733864733520,0.10291054,96620.0,96618.0,0.051718]
[1733864733727,0.051717,96620.0,96618.0,0.051718]
[1733864734125,0.051717,96620.0,96619.0,0.00137848]
[1733864734324,0.051717,96620.0,96619.0,0.05287848]
[1733864735236,0.00155308,96626.0,96624.0,0.051715]
[1733864735434,0.00155308,96626.0,96625.0,0.1009]
[1733864736432,0.00155308,96626.0,96625.0,0.10227848]
[1733864736636,0.412512,96631.0,96625.0,0.10327848]
[1733864737234,0.412512,96631.0,96628.0,0.00137848]
[1733864737433,0.412512,96631.0,96629.0,0.051712]
[1733864737434,0.051712,96630.0,96629.0,0.051712]
[1733864737734,0.051712,96630.0,96628.0,0.00137848]
[1733864738436,0.051712,96630.0,96625.0,0.153614]
[1733864738437,0.051712,96630.0,96629.0,0.00137848]
[1733864738639,0.051712,96630.0,96625.0,0.001]
[1733864738640,0.051714,96626.0,96625.0,0.001]
[1733864738836,0.051727,96604.0,96603.0,0.051726]
[1733864739231,0.051728,96600.0,96599.0,0.3608]
[1733864739539,0.051728,96600.0,96599.0,0.412529]
[1733864742732,0.052728,96600.0,96599.0,0.412529]
[1733864745733,0.10291054,96609.0,96599.0,0.3608]
[1733864745933,0.001,96600.0,96599.0,0.412528]
[1733864746541,0.10291054,96609.0,96602.0,0.051727]
[1733864746744,0.051726,96603.0,96602.0,0.051727]